Cogmind - Beta 10.2 @@@ ROGUE MODE // 2021.08.06 @ 22:40:31 Player: Demise Result: Destroyed by D-53 Grenadier with Mini Grenade Launcher Performance ------------- Evolutions (0) 0 Regions Visited (2) 400 Robots Destroyed (14) 70 Value Destroyed (201) 201 Prototype IDs (0) 0 Alien Tech Used (0) 0 Bonus (0) 0 TOTAL SCORE: 671 Bonus ------- None Cogmind --------- Core Integrity 0/250 Matter 254/300 Energy 95/100 System Corruption 5% Temperature Cool (0) Movement Core (50) Location -10/Mines Parts ------- > --- POWER (1) -------- (None) > --- PROPULSION (2) --- (None) > --- UTILITY (2) ------ Improved Light Armor Plating > --- WEAPON (2) ------- (None) > --- INVENTORY (4) ---- Mining Laser Peak State ------------ > --- POWER ------------ (None) > --- PROPULSION ------- (None) > --- UTILITY ---------- Improved Light Armor Plating > --- WEAPON ----------- Light Assault Rifle > --- INVENTORY -------- Mining Laser [Rating: 4] Favorites ----------- Power None Propulsion None Utility Seismic Analyzer Processor Seismic Analyzer Protection Improved Light Armor Plating Weapon Light Assault Rifle Energy Gun EM Pulse Gun Ballistic Gun Light Assault Rifle Launcher Grenade Launcher Special Weapon Mining Laser Build | -11 -10 -10 ------- Run | Scr Mat Min Slots Evolved . | . . . Power . | . . . Propulsion . | . . . Utility . | . . . Weapon . | . . . Parts Attached 11 | 3 7 1 Power . | . . . Engine . | . . . Core . | . . . Reactor . | . . . Propulsion . | . . . Treads . | . . . Leg . | . . . Wheel . | . . . Hover . | . . . Flight . | . . . Utility 2 | 1 . 1 Device . | . . . Storage . | . . . Processor 1 | 1 . . Hackware . | . . . Protection 1 | . . 1 Artifact . | . . . Weapon 9 | 2 7 . Energy Gun 1 | 1 . . Energy Cannon . | . . . Ballistic Gun 5 | 1 4 . Ballistic Cannon . | . . . Launcher 1 | . 1 . Special Weapon 2 | . 2 . Impact Weapon . | . . . Slashing Weapon . | . . . Piercing Weapon . | . . . Special Melee Weapon . | . . . Unidentified Prototypes . | . . . Parts Lost 4 | . 3 1 Power . | . . . Propulsion . | . . . Utility 1 | . 1 . Weapon 3 | . 2 1 Highest Loss Streak 2 | . 2 1 Average Slot Usage (%) 24 | . 28 14 Processor 2 | . 3 . Energy Gun 4 | . 6 . Ballistic Gun 14 | . 14 14 Special Weapon 2 | . 3 . Naked Turns 36 | . 36 . Heaviest Build 3 | 3 3 1 Greatest Support 3 | 3 3 3 Greatest Overweight (x) . | . . . Average Overweight (x) . | . . . Largest Inventory Capacity 4 | 4 4 4 Average Capacity 4 | 4 4 4 Most Carried 2 | 1 2 2 Average Carried 1 | . 1 1 Final Capacity 4 | 4 4 4 Final Carried 1 | 1 1 1 Class Distribution -------------------- 100% | Mutant Dominant Class ---------------- Mutant | -10/Materials Mutant | -10/Mines Resources | -11 -10 -10 ----------- Run | Scr Mat Min Matter Collected 311 | 223 82 6 Remotely . | . . . Salvage Created 249 | 85 164 . Parts 27 | 7 20 . Haulers Intercepted . | . . . Recyclers Shooed . | . . . Parts Field Recycled . | . . . Retrieved Matter . | . . . Parts Self-Destructed . | . . . Prevented . | . . . Kills | -11 -10 -10 ------- Run | Scr Mat Min Combat Hostiles Destroyed 8 | . 8 . Guns 3 | . 3 . AOE 5 | . 5 . Classes Destroyed 7 | 2 5 . Worker 1 | . 1 . Tunneler 2 | 1 1 . Recycler 1 | 1 . . Mechanic 1 | . 1 . Watcher 1 | . 1 . Swarmer 6 | . 6 . Grunt 2 | . 2 . Best Kill Streak 6 | 2 6 . Combat Bots Only 5 | . 5 . Max Kills in Single Turn 2 | 1 2 . Gunslinging . | . . . Exploded 2 | . 2 . Melee . | . . . Uniques/NPCs Destroyed . | . . . Combat | -11 -10 -10 -------- Run | Scr Mat Min Damage Taken 548 | . 361 187 Core 261 | . 154 107 Absorbed by Shields . | . . . Core Remaining (%) 100 | 100 . . Volleys Fired 23 | 3 20 . Largest 2 | 2 2 . Hottest 140 | 60 140 . Shots Fired 38 | 6 32 . Gun 29 | 6 23 . Cannon . | . . . Launcher 5 | . 5 . Special 4 | . 4 . Kinetic 20 | 3 17 . Thermal 4 | . 4 . Explosive 5 | . 5 . Electromagnetic 9 | 3 6 . Robot Hit Streak 13 | 4 13 . Robot Miss Streak 3 | 1 3 . Penetration Max . | . . . Secondary Targets . | . . . Shots Hit Robots 22 | 5 17 . Core Hits 20 | 3 17 . Critical Hits . | . . . Critical Kills . | . . . Critical Parts Destroyed . | . . . Melee Attacks . | . . . Impact . | . . . Slashing . | . . . Piercing . | . . . Sneak Attacks . | . . . Combat Hostiles . | . . . Follow-up Attacks . | . . . Damage Inflicted 463 | 57 406 . Guns 186 | 57 129 . Cannons . | . . . Explosions 272 | . 272 . Melee . | . . . Ramming 5 | . 5 . Kinetic 89 | 16 73 . Thermal . | . . . Explosive 272 | . 272 . Electromagnetic 97 | 41 56 . Impact . | . . . Slashing . | . . . Piercing . | . . . Highest Corruption 5 | . 5 5 Average Corruption 5 | . 5 5 Corruption Purged . | . . . Effects 11 | . 9 2 Message Errors 3 | . 2 1 Matter Fused 1 | . 1 . Energy Discharges 3 | . 2 1 Data Loss (minor) 3 | . 3 . Targeting Errors 1 | . 1 . Overload Shots . | . . . Overflow Damage . | . . . Projectiles . | . . . Explosions . | . . . Melee . | . . . Knockbacks . | . . . Impact . | . . . Kinetic . | . . . Secondary . | . . . Self-Inflicted Damage 43 | . 43 . Shots 1 | . 1 . Rammed 2 | . 2 . Targets Rammed 2 | . 2 . Kicked . | . . . Crushed . | . . . Highest Temperature 20 | 20 20 . Average Temperature 9 | 10 9 . Received Heat Transfer 69 | . 69 . Siege Activations . | . . . Robots Corrupted . | . . . Combat Hostiles . | . . . Parts Fried 2 | . 2 . Impact Corruptions . | . . . Robots Melted . | . . . Combat Hostiles . | . . . Parts Melted . | . . . Heat Transferred . | . . . Parts Sabotaged . | . . . Parts Stolen . | . . . Parts Stripped . | . . . Power Chain Reactions . | . . . Missiles Intercepted . | . . . Alert | -11 -10 -10 ------- Run | Scr Mat Min Peak Influence 381 | 10 381 148 Initial 148 | . 6 148 Average 151 | 5 165 147 Maximum Alert Level 1 | . 1 . Low Security (%) 65 | 100 48 100 Level 1 34 | . 51 . Level 2 . | . . . Level 3 . | . . . Level 4 . | . . . Level 5 . | . . . High Security . | . . . Max Security . | . . . Squads Dispatched 3 | . 3 . Investigation 3 | . 3 . Extermination . | . . . Reinforcement . | . . . Assault . | . . . Garrison . | . . . Intercept . | . . . Construction Impeded . | . . . Haulers Reinforced . | . . . Stealth | -11 -10 -10 --------- Run | Scr Mat Min Distress Signals 1 | . 1 . Communications Jammed . | . . . Distress Signals . | . . . Times Spotted 21 | . 19 2 Peak Tracking Total 8 | . 8 2 Tactical Retreats 4 | . 4 . Traps | -11 -10 -10 ------- Run | Scr Mat Min Traps Triggered 1 | . 1 . Indirectly . | . . . Trap Hack Attempts . | . . . Triggered . | . . . Disarmed . | . . . Reprogrammed . | . . . Reused . | . . . Traps Extracted . | . . . Installed . | . . . Triggered . | . . . Machines | -11 -10 -10 ---------- Run | Scr Mat Min Machines Disabled 1 | . 1 . Max in Single Turn 1 | . 1 . Machines Sabotaged . | . . . Garrisons Compromised . | . . . Overloaded Fab Kills . | . . . Fab Network Shutdowns . | . . . Hacking | -11 -10 -10 --------- Run | Scr Mat Min Machines Accessed 9 | . 9 . Terminals 8 | . 8 . Fabricators . | . . . Repair Stations . | . . . Recycling Units 1 | . 1 . Scanalyzers . | . . . Garrison Access . | . . . Total Hacks 33 | . 33 . Successful 15 | . 15 . Failed 18 | . 18 . Catastrophic 3 | . 3 . Database Lockouts . | . . . Manual 32 | . 32 . Terminals 31 | . 31 . Fabricators . | . . . Repair Stations . | . . . Recycling Units 2 | . 2 . Scanalyzers . | . . . Garrison Access . | . . . Terminal Hacks 4 | . 4 . Part Schematic 2 | . 2 . Branch Access Points 1 | . 1 . Terminal Index 1 | . 1 . Fabricator Hacks . | . . . Repair Station Hacks . | . . . Recycling Unit Hacks 1 | . 1 . Retrieve Components 1 | . 1 . Scanalyzer . | . . . Garrison Access Hacks . | . . . Unauthorized Hacks 10 | . 10 . Terminals 9 | . 9 . Track 1 | . 1 . Assimilate 1 | . 1 . Botnet 6 | . 6 . Operators 1 | . 1 . Fabricators . | . . . Repair Stations . | . . . Recycling Units 1 | . 1 . Tunnel 1 | . 1 . Scanalyzers . | . . . Garrison Access . | . . . Data Cores Recovered . | . . . Used . | . . . Hacking Detections 7 | . 7 . Full Trace Events 3 | . 3 . Feedback Events . | . . . Feedback Blocked . | . . . Robot Schematics Acquired . | . . . Robots Built . | . . . Matter . | . . . Time . | . . . Total Robot Build Rating . | . . . Part Schematics Acquired 2 | . 2 . Parts Built . | . . . Matter . | . . . Time . | . . . Total Part Build Rating . | . . . Parts Repaired . | . . . Time . | . . . Parts Recycled . | . . . Recycled Matter . | . . . Retrieved Matter . | . . . Retrieved Components . | . . . Parts Scanalyzed . | . . . Part Schematics Acquired . | . . . Parts Damaged . | . . . Bothacking | -11 -10 -10 ------------ Run | Scr Mat Min Used RIF Installer . | . . . Robots Hacked . | . . . Non-combat . | . . . Combat . | . . . Robot Hacks Applied . | . . . Relay Couplers Released . | . . . Robots Rewired . | . . . Allies Hacked . | . . . Hacks Repelled . | . . . Allies | -11 -10 -10 -------- Run | Scr Mat Min Total Allies 1 | . 1 . Largest Group 1 | . 1 . Highest-Rated Group 10 | . 10 . Highest-Rated Ally 10 | . 10 . Total Orders . | . . . Ally Attacks . | . . . Total Damage . | . . . Kills . | . . . Allies Corrupted . | . . . Allies Melted . | . . . Intel | -11 -10 -10 ------- Run | Scr Mat Min Robot Analysis Total . | . . . Derelict Logs Recovered 1 | . . 1 Drone Launches . | . . . Drone Recoveries . | . . . Exploration | -11 -10 -10 ------------- Run | Scr Mat Min Turns Passed 487 | 28 329 130 Spaces Moved 711 | 29 512 170 Core 711 | 29 512 170 Treads . | . . . Legs . | . . . Wheels . | . . . Hover . | . . . Flight . | . . . Fastest Speed 50 | 50 50 50 Average Speed 50 | 50 50 50 Slowest Speed 50 | 50 50 50 Overloaded Moves . | . . . Propulsion Burnouts . | . . . Robots Hopped . | . . . Cave-ins Triggered 1 | . 1 . Exploration Rate (%) 38 | 4 81 29 Regions Visited 2 Branch Regions 1 Pre-discovered Areas 2 | . 1 1 Known Exits Taken 1 | . 1 . Unknown Exits Taken 1 | 1 . . Scrap Searched . | . . . Spaces Dug 4 | . 4 . Terrain Destroyed 44 | . 44 . Melee . | . . . Projectile 4 | . 4 . AOE 40 | . 40 . Terrain Rammed . | . . . Walls Destroyed . | . . . Machines Disabled . | . . . Actions | -11 -10 -10 --------- Run | Scr Mat Min Total 794 | 35 544 215 Wait 45 | . 3 42 Move 709 | 28 511 170 Hop . | . . . Pick Up 2 | 1 1 . Fast Attach 6 | 3 2 1 Attach 1 | . 1 . Detach 1 | . . 1 Swap 4 | . 4 . Drop 1 | . . 1 Fire 23 | 3 20 . Melee . | . . . Ram 2 | . 2 . Kick . | . . . Crush . | . . . Escape Stasis . | . . . Rewire . | . . . Trap . | . . . Miscellaneous . | . . . Route ------- -11/Scrapyard -10/Materials (discovered 3 exits: [*Mat x2] / *Min) -10/Mines (discovered 1 exit: [*Mat]) History --------- Turn | Location | Event 6 | -11/Scrapyard | Discovered new exit (range 15) 29 | -11/Scrapyard | Entered Materials 107 | -10/Materials | Crushed by falling debris 135 | -10/Materials | Identified exit to Mines 202 | -10/Materials | Discovered new exit (range 10) 270 | -10/Materials | Discovered new exit (range 6) 305 | -10/Materials | Build established: Mutant 310 | -10/Materials | Core integrity fell below 50% 358 | -10/Materials | Entered Mines 368 | -10/Mines | Met a Derelict bent on vengeance 380 | -10/Mines | Discovered new exit (range 12) 415 | -10/Mines | Assembled infested the area 420 | -10/Mines | Assisted by a Guerilla fighting off Assembled 487 | -10/Mines | Core integrity fell below 20% 488 | -10/Mines | Destroyed by D-53 Grenadier with Mini Grenade Launcher Last Messages --------------- 00380_ K-01 Serf cleans the Plasma Injector. 00386_ K-01 Serf collects debris. 00415_ ALERT: Infestation in the mines, dispatching Demolisher response squad. 00420_ A derelict emerges from the shadows: "You need to get out of here! I've been tracking a group of Assembled to figure out where they're coming from, and they're closing on this area, come on!" 00422_ K-01 Serf collects debris. 00465_ System corrupted: Energy discharge (-32). 00467_ K-01 Serf collects debris. 00483_ D-53 Grenadier destroyed. 00484_ Acquired 6 matter. 00484_ K-01 Serf collects debris. 00485_ The unstable cave ceiling collapses. 00485_ Acquired Imp. Light Armor Plating. 00485_ U-05 Engineer lays Concrete. 00486_ The unstable cave ceiling collapses. 00486_ Lgt. Assault Rifle destroyed. 00486_ K-01 Serf collects debris. 00486_ U-05 Engineer lays Concrete. 00487_ U-05 Engineer builds a Wall. Map ----- +----------------------------------------------------+ | ???????????????????## ########?????????? #??? | | ???????????????????# ######### #??? | | ???????????????????# """